bitfinex/quotes_BTCUSD_20241216
["timestamp","ask_amount","ask_price","bid_price","bid_amount"]
[1734347014221,0.22105316,104600.0,104590.0,0.32973976]
[1734347015267,0.12676246,104600.0,104590.0,0.32973976]
[1734347015472,0.00016246,104600.0,104590.0,0.89623076]
[1734347015685,0.00016246,104600.0,104590.0,0.96544654]
[1734347016544,0.00016246,104600.0,104590.0,0.9658471]
[1734347020863,0.00016246,104600.0,104590.0,0.89623076]
[1734347024506,0.00016246,104600.0,104590.0,0.96544654]
[1734347024710,0.05740207,104610.0,104600.0,0.172084]
[1734347024885,0.05740207,104610.0,104600.0,0.37973134]
[1734347027116,0.0480726,104620.0,104610.0,0.172067]
[1734347027325,0.1423633,104620.0,104610.0,0.31049856]
[1734347027725,0.2245633,104620.0,104610.0,0.31049856]
[1734347033899,0.1302726,104620.0,104610.0,0.31049856]
[1734347034989,0.0802726,104620.0,104610.0,0.31049856]
[1734347035164,0.0001726,104630.0,104610.0,0.37971434]
[1734347035413,0.0944633,104630.0,104620.0,0.20764734]
[1734347035616,0.0944633,104630.0,104620.0,0.37969834]
[1734347036228,0.0944633,104630.0,104620.0,0.31048256]
[1734347037091,0.0944633,104630.0,104620.0,0.37969834]
[1734347037521,0.0944633,104630.0,104620.0,0.31048256]
[1734347037936,0.1771633,104630.0,104620.0,0.31048256]
[1734347038561,0.0828726,104630.0,104620.0,0.37969834]
[1734347038769,0.0828726,104630.0,104620.0,0.61167034]
[1734347040488,0.0828726,104630.0,104620.0,0.404023]
[1734347040489,0.1771633,104630.0,104620.0,0.404023]
[1734347040703,0.1771633,104630.0,104620.0,0.54030456]
[1734347040906,0.1771633,104630.0,104620.0,0.31048256]
[1734347042151,0.1771633,104630.0,104620.0,0.53453256]
[1734347042567,0.1771633,104630.0,104620.0,0.31048256]
[1734347043594,0.1771633,104630.0,104620.0,0.37969834]
[1734347044621,0.1771633,104630.0,104620.0,0.31048256]
[1734347051012,0.1771633,104630.0,104620.0,0.37969834]
[1734347052043,0.1771633,104630.0,104620.0,0.31048256]
[1734347052589,0.1771633,104630.0,104620.0,0.37969834]
[1734347053392,0.1771633,104630.0,104620.0,0.31048256]
[1734347055590,0.1771633,104630.0,104620.0,0.172051]
[1734347055800,0.2262633,104630.0,104620.0,0.31048256]
[1734347058262,0.31182123,104630.0,104620.0,0.172051]
[1734347058469,0.44015812,104630.0,104620.0,0.24126678]
[1734347058675,0.39643717,104630.0,104620.0,0.172051]
[1734347058882,0.39643717,104630.0,104620.0,0.24126678]
[1734347059117,0.56755303,104630.0,104620.0,0.24126678]
[1734347059311,0.18254235,104630.0,104620.0,0.24126678]
[1734347059498,0.56828192,104630.0,104620.0,0.24126678]
[1734347059705,0.58444076,104630.0,104620.0,0.24126678]
[1734347060149,0.63444076,104630.0,104620.0,0.24126678]
[1734347060399,0.63444076,104630.0,104620.0,0.31048256]
[1734347063140,0.63444076,104630.0,104620.0,0.31065516]
[1734347063341,0.63452706,104630.0,104620.0,0.24143938]
[1734347064094,0.63466539,104630.0,104620.0,0.31065516]
[1734347064842,0.58466539,104630.0,104620.0,0.31065516]
[1734347065261,0.56850655,104630.0,104620.0,0.31065516]
[1734347065469,0.39700526,104630.0,104620.0,0.31065516]
[1734347065878,0.21927929,104630.0,104620.0,0.37987094]
[1734347066096,0.18012764,104630.0,104620.0,0.37987094]
[1734347066315,0.18012764,104630.0,104620.0,0.31065516]
[1734347066568,0.094377,104630.0,104620.0,0.31065516]
[1734347071688,0.094377,104630.0,104620.0,0.37987094]
[1734347071906,0.094377,104630.0,104620.0,0.31065516]
[1734347077355,0.18013106,104630.0,104620.0,0.31065516]
[1734347077894,0.094377,104630.0,104620.0,0.31065516]
[1734347078296,0.18013106,104630.0,104620.0,0.31065516]
[1734347081063,0.18013106,104630.0,104620.0,0.37987094]
[1734347082869,0.18013106,104630.0,104620.0,0.31065516]
[1734347085060,0.094377,104630.0,104620.0,0.12700479]
[1734347085270,0.094377,104630.0,104620.0,0.29905579]
[1734347086087,0.094377,104630.0,104620.0,0.29922839]
[1734347087040,0.094377,104630.0,104620.0,0.24143938]
[1734347087262,0.094377,104630.0,104620.0,0.31065516]
[1734347092186,0.177477,104630.0,104620.0,0.31065516]
[1734347092970,0.094377,104630.0,104620.0,0.37987094]
[1734347093256,0.094377,104630.0,104620.0,0.31065516]
[1734347094000,0.094377,104630.0,104620.0,0.1722236]
[1734347094244,0.094377,104630.0,104620.0,0.37987094]
[1734347097354,0.18013106,104630.0,104620.0,0.37987094]
[1734347098400,0.094377,104630.0,104620.0,0.37987094]
[1734347099175,0.094377,104630.0,104620.0,0.31065516]
[1734347100732,0.18013106,104630.0,104620.0,0.31065516]
[1734347101001,0.26293106,104630.0,104620.0,0.31065516]
[1734347101264,0.177177,104630.0,104620.0,0.13843156]
[1734347101507,0.177177,104630.0,104620.0,0.31048256]
[1734347104757,0.26293106,104630.0,104620.0,0.24126678]
[1734347104941,0.43796216,104630.0,104620.0,0.31048256]
[1734347105563,0.60947029,104630.0,104620.0,0.31048256]
[1734347105773,0.60947029,104630.0,104620.0,0.24126678]
[1734347105969,0.64364026,104630.0,104620.0,0.31048256]
[1734347106167,0.60947029,104630.0,104620.0,0.31048256]
[1734347107955,0.223577,104630.0,104620.0,0.31048256]
[1734347108172,0.60986379,104630.0,104620.0,0.31048256]
[1734347108872,0.60986379,104630.0,104620.0,0.31065516]
[1734347110101,0.52402228,104630.0,104620.0,0.31065516]
[1734347110345,0.60986676,104630.0,104620.0,0.31065516]
[1734347110547,0.52402228,104630.0,104620.0,0.24143938]
[1734347110754,0.60987297,104630.0,104620.0,0.24143938]
[1734347111184,0.73862606,104630.0,104620.0,0.24143938]
[1734347111397,1.12395032,104630.0,104620.0,0.0001726]
[1734347111600,1.15723387,104630.0,104620.0,0.0001726]
[1734347111792,1.15723387,104630.0,104620.0,0.06938838]
[1734347111793,0.94260126,104630.0,104620.0,0.06938838]
[1734347111971,1.2001604,104630.0,104620.0,0.06938838]
[1734347112170,1.15720267,104630.0,104620.0,0.06938838]
[1734347112430,1.20013644,104630.0,104620.0,0.06938838]
[1734347114213,1.15712331,104630.0,104620.0,0.0001726]
[1734347115035,1.15712331,104630.0,104620.0,0.06938838]
[1734347115658,1.15712331,104630.0,104620.0,0.0001726]
[1734347116089,1.15712331,104630.0,104620.0,0.06938838]
[1734347116264,1.32869606,104630.0,104620.0,0.06938838]
[1734347116878,1.32863469,104630.0,104620.0,0.06938838]
[1734347118769,1.27863469,104630.0,104620.0,0.06938838]
[1734347118965,1.32863469,104630.0,104620.0,0.0001726]
[1734347119198,1.23445943,104630.0,104620.0,0.0001726]
[1734347121020,0.848426,104630.0,104620.0,0.0001726]
[1734347121254,1.23434843,104630.0,104620.0,0.0001726]
[1734347122047,1.23434843,104630.0,104620.0,0.06938838]
[1734347123504,1.04319943,104630.0,104620.0,0.06938838]
[1734347123677,1.04319943,104630.0,104620.0,0.24143938]
[1734347123935,1.23434843,104630.0,104620.0,0.06938838]
[1734347125302,1.23434843,104630.0,104620.0,0.24143938]
[1734347126846,1.32852369,104630.0,104620.0,0.24143938]
[1734347127433,1.13737469,104630.0,104620.0,0.24143938]
[1734347127881,1.32852369,104630.0,104620.0,0.24143938]
[1734347128091,1.23434843,104630.0,104620.0,0.24143938]
[1734347130209,1.23425983,104630.0,104620.0,0.24143938]
[1734347130640,1.23425983,104630.0,104620.0,0.06938838]
[1734347131797,1.23425983,104630.0,104620.0,0.07661114]
[1734347132817,1.23425983,104630.0,104620.0,0.06938838]
[1734347133560,1.32843509,104630.0,104620.0,0.06938838]
[1734347133958,1.32843509,104630.0,104620.0,0.07653019]
[1734347135157,1.32843509,104630.0,104620.0,0.06938838]
[1734347136070,1.32843509,104630.0,104620.0,0.07653019]
[1734347137530,1.23425983,104630.0,104620.0,0.07653019]
[1734347139277,1.23425983,104630.0,104620.0,0.00731441]
[1734347140496,1.06277813,104630.0,104620.0,0.00731441]
[1734347140626,1.23432835,104630.0,104620.0,0.00731441]
[1734347141232,1.06277813,104630.0,104620.0,0.00731441]
[1734347141576,1.15695339,104630.0,104620.0,0.00731441]
[1734347144364,1.15695339,104630.0,104620.0,0.07653019]
[1734347144571,1.19982382,104630.0,104620.0,0.07653019]
[1734347144990,1.2000475,104630.0,104620.0,0.07653019]
[1734347145431,1.2000475,104630.0,104620.0,0.00731441]
[1734347146277,1.2000475,104630.0,104620.0,0.07653019]
[1734347146452,1.2000475,104630.0,104620.0,0.00731441]
[1734347147528,0.369486,104610.0,104600.0,0.0001726]
[1734347147739,0.67440144,104610.0,104600.0,0.0001726]
[1734347147939,1.10709259,104610.0,104600.0,0.0001726]
[1734347148148,1.05709259,104610.0,104600.0,0.0001726]
[1734347150623,1.05692706,104610.0,104600.0,0.0001726]
[1734347151966,1.07030477,104610.0,104600.0,0.0001726]
[1734347153614,0.73660477,104610.0,104600.0,0.0001726]
[1734347155137,0.73660477,104610.0,104600.0,0.00496775]
[1734347156157,0.47922061,104610.0,104600.0,0.00496775]
[1734347156605,0.49879207,104610.0,104600.0,0.00496775]
[1734347157524,0.90834024,104610.0,104600.0,0.00496775]
[1734347157738,0.93134024,104610.0,104600.0,0.00496775]
[1734347161293,0.85227404,104610.0,104600.0,0.07418353]
[1734347162035,0.80931593,104610.0,104600.0,0.07418353]
[1734347162436,0.80931593,104610.0,104600.0,0.00496775]
[1734347163724,0.65685615,104610.0,104600.0,0.00496775]
[1734347165504,0.80624511,104610.0,104600.0,0.00496775]
[1734347165706,0.90042037,104610.0,104600.0,0.00496775]
[1734347167075,0.80624511,104610.0,104600.0,0.00496775]
[1734347167489,0.59211483,104610.0,104600.0,0.00496775]
[1734347167668,0.80618306,104610.0,104600.0,0.00496775]
[1734347169142,0.80617892,104610.0,104600.0,0.00496775]
[1734347171862,0.59211483,104610.0,104600.0,0.00496775]
[1734347172068,0.68629009,104610.0,104600.0,0.00496775]
[1734347173107,0.90035427,104610.0,104600.0,0.00496775]
[1734347174136,0.96957005,104610.0,104600.0,0.00496775]
[1734347174343,1.03538289,104610.0,104600.0,0.0001726]
[1734347175163,0.1,104600.0,104570.0,0.68254558]
[1734347175367,0.37114699,104590.0,104580.0,0.06921578]
[1734347175749,0.37114703,104590.0,104570.0,0.6827072]
[1734347176529,0.37114703,104590.0,104570.0,0.5105812]
[1734347176731,0.61237703,104590.0,104570.0,0.26924142]
[1734347176958,0.191241,104580.0,104570.0,0.3384572]
[1734347177158,0.2855317,104580.0,104570.0,0.24878262]
[1734347177358,0.2855317,104580.0,104570.0,0.24886892]
[1734347177793,0.0942907,104580.0,104570.0,0.24886892]
[1734347177943,0.17992203,104580.0,104570.0,0.3180847]
[1734347178149,0.0942907,104580.0,104570.0,0.3180847]
[1734347178380,0.64378529,104580.0,104570.0,0.00024792]
[1734347178610,0.72148529,104580.0,104570.0,0.00024792]
[1734347178746,0.89274796,104580.0,104570.0,0.00024792]
[1734347180240,0.72148529,104580.0,104570.0,0.00024792]
[1734347181072,0.72148529,104580.0,104560.0,0.28297755]
[1734347181274,0.0942907,104570.0,104560.0,0.28297755]
[1734347181474,0.0942907,104570.0,104560.0,0.45511955]
[1734347181826,0.0942907,104570.0,104560.0,0.52433533]
[1734347183074,0.0942907,104570.0,104560.0,0.45511955]
[1734347183739,0.0942907,104570.0,104560.0,0.52433533]
[1734347184478,0.18846596,104570.0,104560.0,0.52433533]
[1734347184697,0.0942907,104570.0,104560.0,0.52433533]
[1734347185367,0.0942907,104570.0,104560.0,0.48271456]
[1734347186681,0.0942907,104570.0,104560.0,0.46168834]
[1734347186906,0.0942907,104570.0,104560.0,0.52443631]
[1734347187071,0.0942907,104570.0,104560.0,0.50978834]
[1734347187518,0.3337,104580.0,104570.0,0.281607]
[1734347187690,0.01274402,104590.0,104580.0,0.152992]
[1734347187885,0.09445948,104590.0,104580.0,0.48923934]
[1734347188112,0.00016878,104590.0,104580.0,0.48923934]
[1734347188736,0.00034138,104590.0,104580.0,0.48923934]
[1734347191592,0.00034138,104590.0,104580.0,3.31509834]
[1734347191806,0.00034138,104590.0,104580.0,1.32248934]
[1734347197976,3.8e-07,104590.0,104580.0,1.32248934]
[1734347198181,0.00931176,104620.0,104600.0,0.15]
[1734347198450,8.63e-05,104630.0,104620.0,0.213834]
[1734347198659,0.00025518,104630.0,104620.0,2.69023678]
[1734347199244,0.00025518,104630.0,104620.0,2.82866834]
[1734347200018,0.00025518,104630.0,104620.0,2.83428808]
[1734347200223,0.00025518,104630.0,104620.0,1.52224508]
[1734347200454,0.00025518,104630.0,104620.0,1.51662534]
[1734347201075,0.00025518,104630.0,104620.0,1.37461434]
[1734347201320,0.00025518,104630.0,104620.0,1.19479034]
[1734347201595,0.00025518,104630.0,104620.0,0.62619434]
[1734347202025,0.00025518,104630.0,104620.0,0.599316]
[1734347202219,0.00025518,104630.0,104620.0,0.68779303]
[1734347203097,0.00025518,104630.0,104620.0,0.63896003]
[1734347203320,0.00025518,104630.0,104620.0,0.43016903]
[1734347206370,0.00025518,104630.0,104620.0,0.27085916]
[1734347206520,0.00025518,104630.0,104620.0,0.42379316]
[1734347208234,0.00025518,104630.0,104620.0,0.52889319]
[1734347211196,1.8e-07,104630.0,104620.0,0.79618389]
[1734347211442,1.8e-07,104630.0,104620.0,0.69049859]
[1734347211717,1.8e-07,104630.0,104620.0,0.81458121]
[1734347212025,7.8e-07,104630.0,104620.0,0.60438115]
[1734347212742,7.8e-07,104630.0,104620.0,0.57749853]
[1734347213206,7.8e-07,104630.0,104620.0,0.78769859]
[1734347213689,7.8e-07,104630.0,104620.0,0.78214889]
[1734347214751,7.8e-07,104630.0,104620.0,0.73214889]
[1734347215287,7.8e-07,104630.0,104620.0,0.52469076]
[1734347215556,7.8e-07,104630.0,104620.0,0.67762476]
[1734347217792,7.8e-07,104630.0,104620.0,0.58333406]
[1734347218038,7.8e-07,104630.0,104620.0,0.56033406]
[1734347218525,7.8e-07,104630.0,104620.0,0.28440155]
[1734347220515,7.8e-07,104630.0,104620.0,0.43440155]
[1734347220736,7.8e-07,104630.0,104620.0,0.25803403]
[1734347223331,7.8e-07,104630.0,104620.0,0.25820643]
[1734347231999,7.8e-07,104630.0,104620.0,0.35998691]
[1734347234154,0.04840078,104630.0,104620.0,0.35998691]
[1734347234557,0.04840078,104630.0,104620.0,0.62822691]
[1734347234760,0.04840078,104630.0,104620.0,0.35998691]
[1734347234937,0.04840078,104630.0,104620.0,0.62972691]
[1734347235555,0.04840078,104630.0,104620.0,0.58648191]
[1734347235758,0.12920078,104630.0,104620.0,0.58648191]
[1734347236078,0.12920078,104630.0,104620.0,0.35998691]
[1734347239376,0.12920078,104630.0,104620.0,0.36199191]
[1734347240116,0.12920078,104630.0,104620.0,0.29303174]
[1734347240319,0.12920078,104630.0,104620.0,0.36199191]
[1734347240897,0.12920078,104630.0,104620.0,0.29303174]
[1734347242537,0.12920078,104630.0,104620.0,0.36199191]
[1734347243115,0.12920078,104630.0,104620.0,0.95214591]
[1734347243296,0.12920078,104630.0,104620.0,0.94164591]
[1734347244142,0.12920078,104630.0,104620.0,0.55995791]
[1734347244874,0.12920078,104630.0,104620.0,0.49099774]
[1734347245071,0.12920078,104630.0,104620.0,0.29303174]
[1734347245271,0.22349148,104630.0,104620.0,0.1551114]
[1734347245476,0.22349148,104630.0,104620.0,0.29303174]
[1734347245722,0.22349148,104630.0,104620.0,0.22407157]
[1734347246141,0.22349148,104630.0,104620.0,0.29303174]
[1734347247138,0.30925343,104630.0,104620.0,0.29303174]
[1734347249436,0.22349148,104630.0,104620.0,0.29303174]
[1734347249861,0.23489117,104630.0,104620.0,0.29303174]
[1734347250670,0.22349148,104630.0,104620.0,0.29303174]
[1734347251613,0.12920078,104630.0,104620.0,0.36199191]
[1734347251842,0.08080078,104630.0,104620.0,0.55605691]
[1734347253060,0.08080078,104630.0,104620.0,0.48709674]
[1734347253401,0.08080078,104630.0,104620.0,0.55605691]
[1734347253602,0.08080078,104630.0,104620.0,0.36199191]
[1734347253774,0.08080078,104630.0,104620.0,1.79102491]
[1734347255663,7.8e-07,104630.0,104620.0,1.79102491]
[1734347255864,7.8e-07,104630.0,104620.0,0.36199191]
[1734347257801,7.8e-07,104630.0,104620.0,0.36695191]
[1734347264982,0.08180078,104630.0,104620.0,0.29799174]
[1734347265183,0.08180078,104630.0,104620.0,0.77717991]
[1734347265355,0.08180078,104630.0,104620.0,0.29799174]
[1734347265963,0.08180078,104630.0,104620.0,0.63486891]
[1734347266660,0.08180078,104630.0,104620.0,0.56590874]
[1734347267232,0.08180078,104630.0,104620.0,0.63486891]
[1734347267435,0.08180078,104630.0,104620.0,0.56590874]
[1734347268406,0.08180078,104630.0,104620.0,0.29799174]
[1734347273191,0.08180078,104630.0,104620.0,0.52079474]
[1734347273390,0.08180078,104630.0,104620.0,0.58975491]
[1734347274542,0.08180078,104630.0,104620.0,0.36695191]
[1734347274925,0.08180078,104630.0,104620.0,2.00807791]
[1734347275672,0.08180078,104630.0,104620.0,1.86807791]
[1734347275872,0.08180078,104630.0,104620.0,1.80883791]
[1734347276264,0.08180078,104630.0,104620.0,1.73987774]
[1734347278541,0.08180078,104630.0,104620.0,1.80883791]
[1734347279182,0.08180078,104630.0,104620.0,1.69473691]
[1734347279777,0.08180078,104630.0,104620.0,1.50087166]
[1734347279982,0.08180078,104630.0,104620.0,1.65380566]
[1734347280180,0.08180078,104630.0,104620.0,1.65397806]
[1734347280970,7.8e-07,104630.0,104620.0,1.65397806]
[1734347281170,7.8e-07,104630.0,104620.0,0.32619306]
[1734347284762,7.8e-07,104630.0,104620.0,0.29102674]
[1734347285809,7.8e-07,104630.0,104620.0,0.35998691]
[1734347287217,7.8e-07,104630.0,104620.0,0.43738691]
[1734347287449,7.8e-07,104630.0,104620.0,0.58111875]
[1734347287706,7.8e-07,104630.0,104620.0,0.81644232]
[1734347287904,7.8e-07,104630.0,104620.0,0.99442768]
[1734347288557,7.8e-07,104630.0,104620.0,0.94442768]
[1734347289376,7.8e-07,104630.0,104620.0,0.94410322]
[1734347289799,7.8e-07,104630.0,104620.0,1.11475037]
[1734347290012,7.8e-07,104630.0,104620.0,0.76505254]
[1734347290215,7.8e-07,104630.0,104620.0,0.91798654]
[1734347290651,7.8e-07,104630.0,104620.0,0.78989232]
[1734347292960,7.8e-07,104630.0,104620.0,0.80067823]
[1734347294266,7.8e-07,104630.0,104620.0,0.71546352]
[1734347294444,7.8e-07,104630.0,104620.0,0.80067047]
[1734347294884,7.8e-07,104630.0,104620.0,0.71546352]
[1734347295090,7.8e-07,104630.0,104620.0,0.800675]
[1734347296249,7.8e-07,104630.0,104620.0,0.62830978]
[1734347300504,7.8e-07,104630.0,104620.0,0.62827865]
[1734347301367,0.03945223,104640.0,104630.0,2.801805]
[1734347301633,0.00010756,104640.0,104630.0,3.15868551]
[1734347301853,0.00010756,104640.0,104630.0,3.29248951]
[1734347306334,0.00010756,104640.0,104630.0,0.49068451]
[1734347306538,0.00010756,104640.0,104630.0,5.54068451]
[1734347308217,5.6e-07,104640.0,104630.0,5.63497521]
[1734347308555,5.6e-07,104640.0,104630.0,0.58497521]
[1734347313051,5.6e-07,104640.0,104630.0,0.61399321]
[1734347313900,8.676e-05,104640.0,104630.0,0.61399321]
[1734347314321,8.676e-05,104640.0,104630.0,5.26626721]
[1734347314535,8.676e-05,104640.0,104630.0,4.73198221]
[1734347317093,8.676e-05,104640.0,104630.0,5.46623721]
[1734347318959,7.6e-07,104640.0,104630.0,5.51623721]
[1734347319142,7.6e-07,104640.0,104630.0,0.66399321]
[1734347319984,7.6e-07,104640.0,104630.0,0.61399321]
[1734347320196,7.6e-07,104640.0,104630.0,0.58497521]
[1734347320400,7.6e-07,104640.0,104630.0,0.63497521]
[1734347321430,7.6e-07,104640.0,104630.0,0.58497521]
[1734347321609,0.07670076,104640.0,104630.0,0.49068451]
[1734347321954,0.07670076,104640.0,104630.0,3.71852451]
[1734347322370,0.07670076,104640.0,104630.0,3.54131351]
[1734347323243,0.07670076,104640.0,104630.0,3.46371451]
[1734347324703,0.07670076,104640.0,104630.0,3.32765451]
[1734347324901,0.07670076,104640.0,104630.0,3.31334151]
[1734347325108,0.07670076,104640.0,104630.0,3.31351391]
[1734347327295,0.07670076,104640.0,104630.0,0.49085691]
[1734347327498,0.07670076,104640.0,104630.0,3.49454991]
[1734347328101,0.07670076,104640.0,104630.0,3.45614091]
[1734347328308,0.07670076,104640.0,104630.0,3.30614091]
[1734347329420,0.07670076,104640.0,104630.0,3.16890091]
[1734347331521,0.07670076,104640.0,104630.0,3.25416604]
[1734347333430,0.07670076,104640.0,104630.0,3.38206374]
[1734347335123,0.07670076,104640.0,104630.0,3.53206374]
[1734347336328,0.07690076,104640.0,104630.0,3.53206374]
[1734347336500,0.07690076,104640.0,104630.0,3.27036204]
[1734347336700,0.07690076,104640.0,104630.0,3.39825974]
[1734347336959,0.07690076,104640.0,104630.0,3.53206374]
[1734347337779,0.07690076,104640.0,104630.0,0.57612204]
[1734347337991,0.07690076,104640.0,104630.0,5.15750474]
[1734347338187,0.07690076,104640.0,104630.0,4.83733704]
[1734347338388,0.07690076,104640.0,104630.0,4.96523474]
[1734347342704,0.07690076,104640.0,104630.0,4.75666574]
[1734347343122,0.07690076,104640.0,104630.0,4.31219674]
[1734347343339,0.07690076,104640.0,104630.0,3.92740274]
[1734347346350,0.12600076,104640.0,104630.0,1.14834653]
[1734347346555,0.22029146,104640.0,104630.0,1.05712353]
[1734347346774,0.22959146,104640.0,104630.0,0.1339764]
[1734347346985,0.22959146,104640.0,104630.0,0.20293657]
[1734347347228,0.31539216,104640.0,104630.0,0.20293657]
[1734347347429,0.44423138,104640.0,104630.0,0.27189674]
[1734347348276,0.31544743,104640.0,104630.0,0.27189674]
[1734347350313,0.22959146,104640.0,104630.0,0.27189674]
[1734347353504,0.22959146,104640.0,104630.0,0.4339764]
[1734347353710,0.33550199,104640.0,104630.0,0.50293657]
[1734347353911,0.47403718,104640.0,104630.0,0.50293657]
[1734347354442,0.35530199,104640.0,104630.0,0.50293657]
[1734347355270,0.36520199,104640.0,104630.0,0.50293657]
[1734347355477,0.40240199,104640.0,104630.0,0.50293657]
[1734347356100,0.3166452,104640.0,104630.0,0.50293657]
[1734347356517,0.30639146,104640.0,104630.0,0.50293657]
[1734347357761,0.30639146,104640.0,104630.0,0.57189674]
[1734347358153,0.30639146,104640.0,104630.0,0.50293657]
[1734347358789,0.30639146,104640.0,104630.0,0.57189674]
[1734347359520,0.30639146,104640.0,104630.0,0.50293657]
[1734347360184,0.30639146,104640.0,104630.0,0.57189674]
[1734347360360,0.30639146,104640.0,104630.0,1.55939374]
[1734347362014,0.30639146,104640.0,104630.0,0.50293657]
[1734347363521,0.30639146,104640.0,104630.0,0.57189674]
[1734347363693,0.30639146,104640.0,104630.0,0.79232174]
[1734347365469,0.21210076,104640.0,104630.0,0.79232174]
[1734347369457,0.21210076,104640.0,104630.0,0.57189674]
[1734347369635,0.21210076,104640.0,104630.0,2.21826074]
[1734347372490,0.21210076,104640.0,104630.0,2.28722091]
[1734347372739,0.16300076,104640.0,104630.0,2.28722091]
[1734347374716,0.16300076,104640.0,104630.0,2.28670979]
[1734347375121,0.16300076,104640.0,104630.0,1.67465762]
[1734347376666,0.16300076,104640.0,104630.0,1.05342062]
[1734347378890,0.16300076,104640.0,104630.0,1.06347038]
[1734347380285,0.16300076,104640.0,104630.0,0.58143538]
[1734347380459,0.16300076,104640.0,104630.0,2.37833738]
[1734347380678,0.16300076,104640.0,104630.0,2.36725538]
[1734347381072,0.16300076,104640.0,104630.0,2.43621555]
[1734347381304,0.16300076,104640.0,104630.0,2.36725538]
[1734347381899,0.16300076,104640.0,104630.0,2.43621555]
[1734347382509,0.16300076,104640.0,104630.0,2.36725538]
[1734347382917,0.16300076,104640.0,104630.0,2.43621555]
[1734347383664,0.16300076,104640.0,104630.0,2.43630185]
[1734347384256,0.16300076,104640.0,104630.0,2.36734168]
[1734347384458,0.16300076,104640.0,104630.0,2.43630185]
[1734347384792,0.16300076,104640.0,104630.0,2.36734168]
[1734347385830,0.16300076,104640.0,104630.0,2.18468368]
[1734347386028,0.16300076,104640.0,104630.0,1.06231668]
[1734347390838,0.16300076,104640.0,104630.0,0.58152168]
[1734347391048,0.16300076,104640.0,104630.0,1.13232668]
[1734347391280,0.16300076,104640.0,104630.0,1.09957368]
[1734347391695,0.16300076,104640.0,104630.0,0.74521158]
[1734347391900,0.30439146,104640.0,104630.0,0.57147192]
[1734347392109,0.28579146,104640.0,104630.0,0.57147192]
[1734347392319,0.29509146,104640.0,104630.0,0.57147192]
[1734347392802,0.30439146,104640.0,104630.0,0.57147192]
[1734347393822,0.30439146,104640.0,104630.0,0.50251175]
[1734347397842,0.30439146,104640.0,104630.0,0.57147192]
[1734347399346,0.30439146,104640.0,104630.0,0.50251175]
[1734347400453,0.30439146,104640.0,104630.0,0.57147192]
[1734347400993,0.29449146,104640.0,104630.0,0.57147192]
[1734347401198,0.30439146,104640.0,104630.0,0.57147192]
[1734347405057,0.21010076,104640.0,104630.0,0.57147192]
[1734347415876,0.16638399,104640.0,104630.0,0.57147192]
[1734347416770,0.16638399,104640.0,104630.0,0.77511192]
[1734347416971,0.16655659,104640.0,104630.0,0.77511192]
[1734347417623,0.16655659,104640.0,104630.0,0.86596519]
[1734347417624,0.02389159,104640.0,104630.0,0.86596519]
[1734347418237,0.00477859,104640.0,104630.0,0.86596519]
[1734347418392,5.9e-07,104640.0,104630.0,0.95113184]
[1734347418608,5.9e-07,104640.0,104630.0,0.74749184]
[1734347418815,5.9e-07,104640.0,104630.0,0.76649184]
[1734347419541,5.9e-07,104640.0,104630.0,0.68132519]
[1734347419784,5.9e-07,104640.0,104630.0,0.69082519]
[1734347420119,5.9e-07,104640.0,104630.0,0.77599184]
[1734347420354,5.9e-07,104640.0,104630.0,0.75409874]
[1734347420915,5.9e-07,104640.0,104630.0,0.75404396]
[1734347421295,5.9e-07,104640.0,104630.0,0.79204396]
[1734347422173,5.9e-07,104640.0,104630.0,0.7920416]
[1734347422997,5.9e-07,104640.0,104630.0,0.70693209]
[1734347423515,5.9e-07,104640.0,104630.0,0.71689891]
[1734347424049,0.0001726,104660.0,104640.0,2.704453]
[1734347424251,0.09502604,104660.0,104650.0,0.20369462]
[1734347424497,0.09502604,104660.0,104650.0,0.27265479]
[1734347424697,0.09502604,104660.0,104650.0,0.27169934]
[1734347425056,0.00073534,104660.0,104650.0,0.27169934]
[1734347431742,0.00073534,104660.0,104650.0,0.27974333]
[1734347436494,0.00073534,104660.0,104650.0,0.14596433]
[1734347436696,0.00073534,104660.0,104650.0,0.14691973]
[1734347437091,0.00073534,104660.0,104650.0,0.28069873]
[1734347437296,0.00073534,104660.0,104650.0,0.27974333]
[1734347439057,0.08403534,104660.0,104650.0,0.27974333]
[1734347440694,0.08403534,104660.0,104650.0,0.14451737]
[1734347440916,0.08403534,104660.0,104650.0,0.1454728]
[1734347441327,0.08403534,104660.0,104650.0,0.2792518]
[1734347441528,0.08403534,104660.0,104650.0,0.27829637]
[1734347442349,0.08403534,104660.0,104650.0,0.28779637]
[1734347446300,0.00073534,104660.0,104650.0,0.9086912]
[1734347447558,3.4e-07,104660.0,104650.0,0.9086912]
[1734347447765,3.4e-07,104660.0,104650.0,0.3818212]
[1734347449513,3.4e-07,104660.0,104650.0,0.4580212]
[1734347449695,3.4e-07,104660.0,104650.0,0.54296802]
[1734347450154,3.4e-07,104660.0,104650.0,0.54131039]
[1734347450408,3.4e-07,104660.0,104650.0,0.5514027]
[1734347450674,6.4e-07,104660.0,104650.0,0.5514027]
[1734347450916,6.4e-07,104660.0,104650.0,0.95603867]
[1734347451591,6.4e-07,104660.0,104650.0,0.32304083]
[1734347452036,6.4e-07,104660.0,104650.0,0.46631983]
[1734347453174,6.4e-07,104660.0,104650.0,0.38137301]
[1734347453400,6.4e-07,104660.0,104650.0,0.46631983]
[1734347453604,6.4e-07,104660.0,104650.0,0.46628789]
[1734347454239,6.4e-07,104660.0,104650.0,0.38137301]
[1734347455125,6.4e-07,104660.0,104650.0,0.1744925]
[1734347455320,6.4e-07,104660.0,104650.0,0.38232833]
[1734347455514,6.4e-07,104660.0,104650.0,0.38137301]
[1734347457142,6.4e-07,104660.0,104650.0,0.51262994]
[1734347458211,0.0921904,104670.0,104660.0,1.94567717]
[1734347458212,4e-08,104670.0,104660.0,1.94567717]
[1734347458388,2.8e-07,104670.0,104660.0,0.20272617]
[1734347458632,2.8e-07,104670.0,104660.0,0.24660548]
[1734347458851,2.8e-07,104670.0,104660.0,0.24565026]
[1734347460345,2.8e-07,104670.0,104660.0,0.3835706]
[1734347469793,4.028e-05,104670.0,104660.0,0.3835706]
[1734347470204,4.028e-05,104670.0,104660.0,2.6620056]
[1734347470398,4.028e-05,104670.0,104660.0,2.74699719]
[1734347470602,2.8e-07,104670.0,104660.0,2.74699719]
[1734347470738,2.8e-07,104670.0,104660.0,0.74604958]
[1734347471162,2.8e-07,104670.0,104660.0,0.61856219]
[1734347472348,2.8e-07,104670.0,104660.0,0.74604958]
[1734347472570,2.8e-07,104670.0,104660.0,0.61856219]
[1734347472782,2.8e-07,104670.0,104660.0,0.74604958]
[1734347473808,2.8e-07,104670.0,104660.0,0.74622218]
[1734347474025,2.8e-07,104670.0,104660.0,0.73672218]
[1734347474249,5.8e-07,104670.0,104660.0,0.60830184]
[1734347475302,0.10719458,104680.0,104660.0,0.74622218]
[1734347475539,6e-07,104690.0,104680.0,0.114635]
[1734347475753,6e-07,104690.0,104680.0,0.32247058]
[1734347476104,6e-07,104690.0,104680.0,0.3454309]
[1734347476482,6e-07,104690.0,104680.0,0.3264309]
[1734347476734,6e-07,104690.0,104680.0,0.3454309]
[1734347476880,6e-07,104690.0,104680.0,0.37588881]
[1734347477498,6e-07,104690.0,104680.0,0.3454309]
[1734347478298,0.0808006,104690.0,104680.0,0.3454309]